[Event "44th Chess Olympiad Women 2022"]
[Site "Chennai"]
[Date "2022.08.06"]
[Round "8.62"]
[White "Johnson, Nellisha"]
[Black "Terubea, Cydel"]
[Result "0-1"]
[WhiteElo "1093"]
[BlackElo "1450"]
[Annotator "NA RC"]
[PlyCount "88"]
[EventDate "2022.??.??"]
[TimeControl "60"]

1. e4 {[%emt 0:00:03]} d5 {[%emt 0:00:05]} 2. exd5 {[%emt 0:00:12]} Nf6 {
[%emt 0:00:06]} 3. Nc3 {[%emt 0:00:40]} Nxd5 {[%emt 0:00:06]} 4. d4 {[%emt 0:
00:00]} Nc6 {[%emt 0:02:27]} 5. Nf3 {[%emt 0:01:14]} Bg4 {[%emt 0:01:24]} 6.
Be2 {[%emt 0:01:08]} e6 {[%emt 0:01:35]} 7. Nxd5 {[%emt 0:02:11]} Qxd5 {
[%emt 0:00:50]} 8. c3 {[%emt 0:01:08]} Be7 {[%emt 0:00:58]} 9. O-O {[%emt 0:00:
00]} O-O {[%emt 0:01:41]} 10. Bf4 {[%emt 0:01:57]} Bd6 {[%emt 0:00:54]} 11. Qd2
{[%emt 0:03:51]} Qf5 {[%emt 0:03:25]} 12. Bxd6 {[%emt 0:02:29]} cxd6 {[%emt 0:
00:00]} 13. Nh4 {[%emt 0:04:07]} Qh5 {[%emt 0:00:25]} 14. Bxg4 {[%emt 0:00:37]}
Qxg4 {[%emt 0:00:11]} 15. Nf3 {[%emt 0:00:13]} e5 {[%emt 0:01:25]} 16. dxe5 {
[%emt 0:03:51]} dxe5 {[%emt 0:00:22]} 17. Rfe1 {[%emt 0:04:48]} Rfe8 {[%emt 0:
00:00]} 18. Qg5 {[%emt 0:02:55]} Qe6 {[%emt 0:04:34]} 19. Qe3 {[%emt 0:02:28]}
Rad8 {[%emt 0:01:41]} 20. a3 {[%emt 0:03:07]} f5 {[%emt 0:02:38]} 21. g3 {
[%emt 0:03:55]} h6 {[%emt 0:03:04]} 22. Rad1 {[%emt 0:03:52]} e4 {[%emt 0:00:
00]} 23. Nd4 {[%emt 0:02:47]} Nxd4 {[%emt 0:02:08]} 24. Rxd4 {[%emt 0:02:07]}
b6 {[%emt 0:04:46]} 25. f4 {[%emt 0:02:45]} Qb3 {[%emt 0:03:11]} 26. Re2 {
[%emt 0:05:29]} Rxd4 {[%emt 0:01:43]} 27. Qxd4 {[%emt 0:01:05]} Qb5 {[%emt 0:
00:00]} 28. Qd2 {[%emt 0:03:34]} Re7 {[%emt 0:07:32]} 29. Kg2 {[%emt 0:04:39]}
Rd7 {[%emt 0:00:41]} 30. Qc2 {[%emt 0:01:23]} g6 {[%emt 0:02:17]} 31. c4 {
[%emt 0:00:56]} Qc6 {[%emt 0:00:13]} 32. b3 {[%emt 0:01:46]} h5 {[%emt 0:00:40]
} 33. h4 {[%emt 0:01:39]} a5 {[%emt 0:00:35]} 34. Rd2 {[%emt 0:00:14]} Rxd2+ {
[%emt 0:00:07]} 35. Qxd2 {[%emt 0:00:08]} e3+ {[%emt 0:00:02]} 36. Kf1 {
[%emt 0:01:00]} exd2 {[%emt 0:00:13]} 37. Ke2 {[%emt 0:00:11]} Qd7 {[%emt 0:00:
00]} 38. Kd1 {[%emt 0:00:17]} Qd3 {[%emt 0:00:37]} 39. b4 {[%emt 0:00:37]} Qxa3
{[%emt 0:00:28]} 40. Kxd2 {[%emt 0:00:08]} Qxb4+ {[%emt 0:00:13]} 41. Kd3 {
[%emt 0:30:27]} a4 {[%emt 0:30:11]} 42. Kd4 {[%emt 0:00:27]} Qc5+ {[%emt 0:00:
00]} 43. Kc3 {[%emt 0:00:19]} b5 {[%emt 0:00:16]} 44. Kb2 {[%emt 0:02:21]} Qxc4
{[%emt 0:00:20]} 0-1

[Event "44th Chess Olympiad Women 2022"]
[Site "Chennai"]
[Date "2022.08.06"]
[Round "8.62"]
[White "Lam, Pooja"]
[Black "Lyons, Kieran"]
[Result "0-1"]
[WhiteElo "1163"]
[BlackElo "1767"]
[Annotator "NA RC"]
[PlyCount "52"]
[EventDate "2022.??.??"]
[TimeControl "60"]

1. d4 {[%emt 0:00:03]} f5 {[%emt 0:00:04]} 2. c4 {[%emt 0:00:10]} e6 {[%emt 0:
00:00]} 3. g3 {[%emt 0:00:04]} Nf6 {[%emt 0:00:06]} 4. Bg2 {[%emt 0:00:06]} d6
{[%emt 0:00:11]} 5. Nc3 {[%emt 0:00:05]} Be7 {[%emt 0:00:09]} 6. Nf3 {[%emt 0:
00:00]} O-O {[%emt 0:00:12]} 7. O-O {[%emt 0:00:04]} c6 {[%emt 0:00:08]} 8. Qc2
{[%emt 0:00:23]} Nbd7 {[%emt 0:00:33]} 9. e4 {[%emt 0:00:44]} fxe4 {[%emt 0:00:
00]} 10. Nxe4 {[%emt 0:00:09]} Nxe4 {[%emt 0:00:03]} 11. Qxe4 {[%emt 0:00:09]}
Nf6 {[%emt 0:00:04]} 12. Qe2 {[%emt 0:00:29]} h6 {[%emt 0:00:32]} 13. b3 {
[%emt 0:00:57]} Qe8 {[%emt 0:00:32]} 14. Bb2 {[%emt 0:00:36]} Qg6 {[%emt 0:00:
00]} 15. Rad1 {[%emt 0:01:41]} Rf7 {[%emt 0:07:31]} 16. Bh3 {[%emt 0:07:12]}
Qh5 {[%emt 0:10:27]} 17. Kg2 {[%emt 0:04:39]} Nh7 {[%emt 0:01:49]} 18. Bxe6 {
[%emt 0:03:15]} Bxe6 {[%emt 0:00:09]} 19. Qxe6 {[%emt 0:00:12]} Qxf3+ {[%emt 0:
00:00]} 20. Kg1 {[%emt 0:00:15]} Ng5 {[%emt 0:00:27]} 21. Qd7 {[%emt 0:05:14]}
Rd8 {[%emt 0:00:18]} 22. Qxd8+ {[%emt 0:00:32]} Bxd8 {[%emt 0:00:07]} 23. h4 {
[%emt 0:00:01]} Nh3+ {[%emt 0:03:36]} 24. Kh2 {[%emt 0:00:15]} Nxf2 {[%emt 0:
00:00]} 25. Rxf2 {[%emt 0:01:08]} Qxf2+ {[%emt 0:00:08]} 26. Kh3 {[%emt 0:00:
00]} Qxb2 {[%emt 0:00:20]} 0-1

[Event "44th Chess Olympiad Women 2022"]
[Site "Chennai"]
[Date "2022.08.06"]
[Round "8.62"]
[White "Sewak, Aarti"]
[Black "Shariff, Sasha Christina"]
[Result "0-1"]
[WhiteElo "1412"]
[BlackElo "1183"]
[Annotator "NA RC"]
[PlyCount "96"]
[EventDate "2022.??.??"]
[TimeControl "60"]

1. e4 {[%emt 0:00:01]} e5 {[%emt 0:00:06]} 2. Nf3 {[%emt 0:00:09]} Nc6 {
[%emt 0:00:05]} 3. Nc3 {[%emt 0:00:18]} Bc5 {[%emt 0:03:27]} 4. Na4 {[%emt 0:
00:00]} Bb6 {[%emt 0:01:10]} 5. Bc4 {[%emt 0:01:07]} Nf6 {[%emt 0:01:14]} 6. d3
{[%emt 0:00:37]} d5 {[%emt 0:04:47]} 7. exd5 {[%emt 0:03:38]} Nxd5 {[%emt 0:00:
00]} 8. c3 {[%emt 0:05:27]} O-O {[%emt 0:03:55]} 9. Ng5 {[%emt 0:00:26]} Nf6 {
[%emt 0:14:47]} 10. b4 {[%emt 0:04:10]} Qd6 {[%emt 0:15:25]} 11. Qb3 {[%emt 0:
00:00]} Qe7 {[%emt 0:04:52]} 12. Nxf7 {[%emt 0:03:20]} Rxf7 {[%emt 0:00:43]}
13. Bg5 {[%emt 0:01:07]} h6 {[%emt 0:02:31]} 14. Bh4 {[%emt 0:03:49]} Bf5 {
[%emt 0:03:37]} 15. O-O-O {[%emt 0:01:14]} Re8 {[%emt 0:04:45]} 16. Rhe1 {
[%emt 0:00:16]} Be6 {[%emt 0:01:54]} 17. Re2 {[%emt 0:05:36]} Bxc4 {[%emt 0:00:
00]} 18. dxc4 {[%emt 0:00:27]} a6 {[%emt 0:03:16]} 19. Rde1 {[%emt 0:01:06]}
Qe6 {[%emt 0:03:15]} 20. h3 {[%emt 0:01:50]} Kh8 {[%emt 0:07:02]} 21. f4 {
[%emt 0:01:03]} Nh5 {[%emt 0:05:25]} 22. g3 {[%emt 0:00:53]} Qf5 {[%emt 0:00:
00]} 23. c5 {[%emt 0:01:25]} Ba7 {[%emt 0:00:56]} 24. Re4 {[%emt 0:03:28]} Qe6
{[%emt 0:01:31]} 25. Qc2 {[%emt 0:00:54]} Nf6 {[%emt 0:01:08]} 26. Bxf6 {
[%emt 0:08:49]} Qxf6 {[%emt 0:01:17]} 27. R1e2 {[%emt 0:00:52]} Rfe7 {[%emt 0:
00:00]} 28. Nb2 {[%emt 0:00:26]} exf4 {[%emt 0:00:55]} 29. gxf4 {[%emt 0:02:35]
} Qf5 {[%emt 0:00:23]} 30. Qd2 {[%emt 0:04:53]} Rxe4 {[%emt 0:00:15]} 31. Rf2 {
[%emt 0:00:31]} Rd8 {[%emt 0:01:02]} 32. Nd3 {[%emt 0:04:54]} Rxd3 {[%emt 0:00:
00]} 33. Qxd3 {[%emt 0:01:31]} Re1+ {[%emt 0:00:08]} 34. Kd2 {[%emt 0:00:20]}
Rd1+ {[%emt 0:00:13]} 35. Kxd1 {[%emt 0:00:24]} Qxd3+ {[%emt 0:00:05]} 36. Rd2
{[%emt 0:00:21]} Qb1+ {[%emt 0:01:12]} 37. Ke2 {[%emt 0:00:22]} Qe4+ {[%emt 0:
00:00]} 38. Kd1 {[%emt 0:00:27]} Qh1+ {[%emt 0:00:50]} 39. Kc2 {[%emt 0:00:14]}
Qe4+ {[%emt 0:01:10]} 40. Kb2 {[%emt 0:00:52]} Qxf4 {[%emt 0:00:22]} 41. Kc2 {
[%emt 0:30:17]} Qf5+ {[%emt 0:30:13]} 42. Kb2 {[%emt 0:00:07]} Qxh3 {[%emt 0:
00:00]} 43. a4 {[%emt 0:00:21]} b6 {[%emt 0:00:28]} 44. b5 {[%emt 0:00:54]}
axb5 {[%emt 0:00:29]} 45. axb5 {[%emt 0:00:19]} Na5 {[%emt 0:00:08]} 46. Rd8+ {
[%emt 0:00:17]} Kh7 {[%emt 0:00:19]} 47. c6 {[%emt 0:00:29]} Qg2+ {[%emt 0:00:
00]} 48. Ka3 {[%emt 0:04:03]} Qc2 {[%emt 0:01:30]} 0-1

[Event "44th Chess Olympiad Women 2022"]
[Site "Chennai"]
[Date "2022.08.06"]
[Round "8.63"]
[White "Roberts, Tallulah"]
[Black "Tilman, Zulmira Americo"]
[Result "1-0"]
[WhiteElo "1536"]
[BlackElo "1255"]
[Annotator "NA RC"]
[PlyCount "85"]
[EventDate "2022.??.??"]
[TimeControl "60"]

1. d4 {[%emt 0:00:02]} d6 {[%emt 0:00:20]} 2. c4 {[%emt 0:00:03]} Nf6 {[%emt 0:
00:00]} 3. Nf3 {[%emt 0:00:38]} c6 {[%emt 0:00:25]} 4. g3 {[%emt 0:00:21]} Qa5+
{[%emt 0:00:30]} 5. Bd2 {[%emt 0:00:22]} Qc7 {[%emt 0:00:15]} 6. Bg2 {[%emt 0:
00:00]} e5 {[%emt 0:01:58]} 7. dxe5 {[%emt 0:02:21]} dxe5 {[%emt 0:00:33]} 8.
Nc3 {[%emt 0:00:19]} Bd6 {[%emt 0:01:07]} 9. O-O {[%emt 0:01:19]} O-O {[%emt 0:
00:00]} 10. Qc2 {[%emt 0:03:45]} h6 {[%emt 0:00:29]} 11. a3 {[%emt 0:04:17]}
Be6 {[%emt 0:00:15]} 12. Ne4 {[%emt 0:02:45]} Nbd7 {[%emt 0:00:56]} 13. c5 {
[%emt 0:05:23]} Be7 {[%emt 0:00:52]} 14. b4 {[%emt 0:05:42]} a5 {[%emt 0:06:59]
} 15. Nxf6+ {[%emt 0:01:28]} Nxf6 {[%emt 0:01:01]} 16. e4 {[%emt 0:10:23]} axb4
{[%emt 0:07:10]} 17. axb4 {[%emt 0:00:23]} Nd7 {[%emt 0:02:04]} 18. Nh4 {
[%emt 0:13:46]} Bxh4 {[%emt 0:03:41]} 19. gxh4 {[%emt 0:00:01]} Qd8 {[%emt 0:
00:00]} 20. Rxa8 {[%emt 0:00:44]} Qxa8 {[%emt 0:02:49]} 21. f4 {[%emt 0:01:30]}
f5 {[%emt 0:04:06]} 22. exf5 {[%emt 0:06:50]} Bxf5 {[%emt 0:01:41]} 23. Qb3+ {
[%emt 0:04:36]} Kh8 {[%emt 0:01:12]} 24. Bh3 {[%emt 0:07:58]} Bxh3 {[%emt 0:00:
00]} 25. Qxh3 {[%emt 0:00:01]} Qe8 {[%emt 0:02:00]} 26. Bc3 {[%emt 0:04:52]}
Qg6+ {[%emt 0:04:29]} 27. Qg3 {[%emt 0:04:34]} Qe4 {[%emt 0:05:56]} 28. Bxe5 {
[%emt 0:08:34]} Nxe5 {[%emt 0:02:20]} 29. fxe5 {[%emt 0:00:18]} Rxf1+ {[%emt 0:
00:00]} 30. Kxf1 {[%emt 0:00:05]} Qxb4 {[%emt 0:00:41]} 31. Qe3 {[%emt 0:02:55]
} Qxh4 {[%emt 0:00:36]} 32. e6 {[%emt 0:01:44]} Qe7 {[%emt 0:01:04]} 33. Qe5 {
[%emt 0:01:18]} Kh7 {[%emt 0:02:35]} 34. Qd6 {[%emt 0:01:40]} Qf6+ {[%emt 0:00:
00]} 35. Ke2 {[%emt 0:00:42]} Kg8 {[%emt 0:03:56]} 36. Qb8+ {[%emt 0:03:10]}
Qf8 {[%emt 0:01:25]} 37. Qd6 {[%emt 0:01:05]} Qf6 {[%emt 0:01:51]} 38. Qb8+ {
[%emt 0:00:12]} Qf8 {[%emt 0:03:04]} 39. Qxb7 {[%emt 0:00:48]} Qxc5 {[%emt 0:
00:00]} 40. Qf7+ {[%emt 0:00:41]} Kh7 {[%emt 0:00:56]} 41. e7 {[%emt 0:04:29]}
Qe5+ {[%emt 0:01:44]} 42. Kf3 {[%emt 0:02:43]} Qxh2 {[%emt 0:05:30]} 43. Qf5+ {
[%emt 0:00:25]} 1-0

[Event "44th Chess Olympiad Women 2022"]
[Site "Chennai"]
[Date "2022.08.06"]
[Round "8.64"]
[White "La Fleur, Zara"]
[Black "Yavo Tchetche, Marie"]
[Result "1/2-1/2"]
[WhiteElo "1513"]
[BlackElo "1313"]
[Annotator "NA RC"]
[PlyCount "85"]
[EventDate "2022.??.??"]
[TimeControl "60"]

1. e4 {[%emt 0:00:04]} e6 {[%emt 0:00:37]} 2. d4 {[%emt 0:00:10]} d5 {[%emt 0:
00:00]} 3. exd5 {[%emt 0:00:22]} exd5 {[%emt 0:01:33]} 4. Bd3 {[%emt 0:01:13]}
Bd6 {[%emt 0:00:50]} 5. Nf3 {[%emt 0:00:19]} Nf6 {[%emt 0:00:26]} 6. O-O {
[%emt 0:00:38]} O-O {[%emt 0:00:31]} 7. Bg5 {[%emt 0:01:41]} Bg4 {[%emt 0:00:
00]} 8. Nbd2 {[%emt 0:01:25]} Nbd7 {[%emt 0:00:51]} 9. c3 {[%emt 0:01:43]} Re8
{[%emt 0:01:13]} 10. Qc2 {[%emt 0:03:26]} h6 {[%emt 0:02:05]} 11. Bh4 {[%emt 0:
00:00]} c5 {[%emt 0:00:43]} 12. Rfe1 {[%emt 0:06:32]} Qc7 {[%emt 0:04:33]} 13.
Bg3 {[%emt 0:12:43]} c4 {[%emt 0:01:02]} 14. Bf5 {[%emt 0:01:54]} Bxf5 {
[%emt 0:12:21]} 15. Qxf5 {[%emt 0:00:07]} Bxg3 {[%emt 0:01:09]} 16. hxg3 {
[%emt 0:00:04]} Qb6 {[%emt 0:01:25]} 17. Qc2 {[%emt 0:06:06]} Ng4 {[%emt 0:00:
00]} 18. Nf1 {[%emt 0:07:08]} Ndf6 {[%emt 0:02:06]} 19. N1h2 {[%emt 0:04:36]}
Nxh2 {[%emt 0:03:53]} 20. Nxh2 {[%emt 0:00:58]} Re6 {[%emt 0:00:40]} 21. Re2 {
[%emt 0:04:29]} Rxe2 {[%emt 0:00:48]} 22. Qxe2 {[%emt 0:00:09]} Re8 {[%emt 0:
00:00]} 23. Qc2 {[%emt 0:00:53]} Qe6 {[%emt 0:00:24]} 24. Nf3 {[%emt 0:01:59]}
Qe2 {[%emt 0:01:14]} 25. Rc1 {[%emt 0:00:47]} Ng4 {[%emt 0:01:13]} 26. Ne5 {
[%emt 0:11:48]} Qxc2 {[%emt 0:00:29]} 27. Rxc2 {[%emt 0:00:12]} Nxe5 {[%emt 0:
00:00]} 28. dxe5 {[%emt 0:00:24]} Rxe5 {[%emt 0:00:53]} 29. Kf1 {[%emt 0:00:14]
} Kf8 {[%emt 0:00:29]} 30. Rd2 {[%emt 0:00:31]} g5 {[%emt 0:01:36]} 31. Rd4 {
[%emt 0:02:57]} Ke7 {[%emt 0:01:23]} 32. f4 {[%emt 0:07:19]} gxf4 {[%emt 0:00:
00]} 33. gxf4 {[%emt 0:00:14]} Re4 {[%emt 0:00:19]} 34. Rxd5 {[%emt 0:03:01]}
Rxf4+ {[%emt 0:00:43]} 35. Ke2 {[%emt 0:00:27]} f5 {[%emt 0:01:43]} 36. Rd1 {
[%emt 0:03:10]} Ke6 {[%emt 0:01:02]} 37. Rh1 {[%emt 0:00:37]} Kd5 {[%emt 0:00:
00]} 38. Rxh6 {[%emt 0:00:22]} Re4+ {[%emt 0:01:22]} 39. Kf2 {[%emt 0:03:25]}
Re6 {[%emt 0:00:48]} 40. Rxe6 {[%emt 0:07:51]} Kxe6 {[%emt 0:00:31]} 41. Ke3 {
[%emt 0:30:57]} Ke5 {[%emt 0:30:27]} 42. g3 {[%emt 0:01:01]} b5 {[%emt 0:01:18]
} 43. a3 {[%emt 0:00:51]} 1/2-1/2

[Event "44th Chess Olympiad Women 2022"]
[Site "Chennai"]
[Date "2022.08.06"]
[Round "8.65"]
[White "Abdul Rasheed, Mariyam Laisa"]
[Black "Saraci, Nita"]
[Result "1/2-1/2"]
[WhiteElo "1145"]
[BlackElo "1555"]
[Annotator "NA RC"]
[PlyCount "79"]
[EventDate "2022.??.??"]
[TimeControl "60"]

1. e4 {[%emt 0:00:03]} b6 {[%emt 0:00:10]} 2. d4 {[%emt 0:00:11]} Bb7 {[%emt 0:
00:00]} 3. Bd3 {[%emt 0:00:08]} e6 {[%emt 0:00:21]} 4. Nf3 {[%emt 0:00:46]} Nf6
{[%emt 0:01:41]} 5. Qe2 {[%emt 0:00:36]} d6 {[%emt 0:04:04]} 6. O-O {[%emt 0:
00:00]} Be7 {[%emt 0:01:19]} 7. Nc3 {[%emt 0:01:19]} a6 {[%emt 0:01:18]} 8. Re1
{[%emt 0:02:56]} O-O {[%emt 0:01:51]} 9. h3 {[%emt 0:01:21]} h6 {[%emt 0:03:42]
} 10. Bf4 {[%emt 0:00:57]} Nbd7 {[%emt 0:05:41]} 11. Rad1 {[%emt 0:11:30]} Nh7
{[%emt 0:11:02]} 12. e5 {[%emt 0:06:47]} d5 {[%emt 0:01:29]} 13. Qd2 {[%emt 0:
00:00]} c5 {[%emt 0:04:27]} 14. Bxh6 {[%emt 0:16:03]} c4 {[%emt 0:18:16]} 15.
Bxh7+ {[%emt 0:02:55]} Kxh7 {[%emt 0:03:56]} 16. Bf4 {[%emt 0:04:17]} Rh8 {
[%emt 0:03:06]} 17. Qe3 {[%emt 0:03:50]} Kg8 {[%emt 0:02:03]} 18. Bg5 {[%emt 0:
00:00]} Bxg5 {[%emt 0:03:42]} 19. Qxg5 {[%emt 0:02:28]} Qxg5 {[%emt 0:02:28]}
20. Nxg5 {[%emt 0:00:07]} Rh5 {[%emt 0:00:40]} 21. Nf3 {[%emt 0:00:46]} Kf8 {
[%emt 0:01:22]} 22. b3 {[%emt 0:03:39]} b5 {[%emt 0:00:43]} 23. bxc4 {[%emt 0:
00:00]} bxc4 {[%emt 0:00:15]} 24. Rb1 {[%emt 0:05:36]} Bc6 {[%emt 0:01:40]} 25.
Rb2 {[%emt 0:00:16]} Rb8 {[%emt 0:04:41]} 26. Rxb8+ {[%emt 0:01:23]} Nxb8 {
[%emt 0:00:23]} 27. Rb1 {[%emt 0:00:10]} Nd7 {[%emt 0:00:41]} 28. Ne2 {[%emt 0:
00:00]} Ke7 {[%emt 0:00:58]} 29. c3 {[%emt 0:00:36]} f6 {[%emt 0:01:58]} 30.
Ng3 {[%emt 0:01:48]} Rh8 {[%emt 0:00:38]} 31. Re1 {[%emt 0:03:04]} f5 {[%emt 0:
00:00]} 32. Rb1 {[%emt 0:00:13]} g6 {[%emt 0:01:29]} 33. Ne2 {[%emt 0:05:18]}
Rb8 {[%emt 0:05:02]} 34. Rxb8 {[%emt 0:01:05]} Nxb8 {[%emt 0:00:03]} 35. Nf4 {
[%emt 0:00:16]} Be8 {[%emt 0:00:31]} 36. Kf1 {[%emt 0:01:47]} Nd7 {[%emt 0:00:
00]} 37. Ke1 {[%emt 0:00:32]} Nb6 {[%emt 0:00:07]} 38. Kd2 {[%emt 0:00:50]} Na4
{[%emt 0:00:14]} 39. Kc2 {[%emt 0:00:29]} Bf7 {[%emt 0:00:28]} 40. Ng5 {
[%emt 0:00:37]} 1/2-1/2

[Event "44th Chess Olympiad Women 2022"]
[Site "Chennai"]
[Date "2022.08.06"]
[Round "8.65"]
[White "Nihaya, Ahmed"]
[Black "Saraci, Ndriqona"]
[Result "1-0"]
[WhiteElo "1233"]
[BlackElo "1425"]
[Annotator "NA RC"]
[PlyCount "91"]
[EventDate "2022.??.??"]
[TimeControl "60"]

1. e4 {[%emt 0:00:03]} d5 {[%emt 0:00:08]} 2. exd5 {[%emt 0:00:23]} Qxd5 {
[%emt 0:00:08]} 3. Nc3 {[%emt 0:00:03]} Qa5 {[%emt 0:00:23]} 4. Nf3 {[%emt 0:
00:00]} Nf6 {[%emt 0:00:21]} 5. Bc4 {[%emt 0:00:41]} Bg4 {[%emt 0:01:57]} 6.
O-O {[%emt 0:00:30]} e6 {[%emt 0:03:19]} 7. d4 {[%emt 0:00:40]} c6 {[%emt 0:00:
00]} 8. a3 {[%emt 0:01:16]} Be7 {[%emt 0:03:22]} 9. b4 {[%emt 0:01:26]} Qd8 {
[%emt 0:02:22]} 10. Be3 {[%emt 0:01:20]} Nd5 {[%emt 0:03:28]} 11. Nxd5 {
[%emt 0:00:46]} cxd5 {[%emt 0:00:21]} 12. Be2 {[%emt 0:00:11]} Nd7 {[%emt 0:00:
00]} 13. h3 {[%emt 0:01:00]} Bf5 {[%emt 0:00:50]} 14. c4 {[%emt 0:00:49]} dxc4
{[%emt 0:02:29]} 15. Bxc4 {[%emt 0:00:14]} Rc8 {[%emt 0:02:35]} 16. Rc1 {
[%emt 0:05:29]} O-O {[%emt 0:02:00]} 17. d5 {[%emt 0:00:24]} Nb6 {[%emt 0:00:
00]} 18. Bxb6 {[%emt 0:01:13]} Qxb6 {[%emt 0:00:55]} 19. Re1 {[%emt 0:06:47]}
Rfd8 {[%emt 0:17:40]} 20. Qb3 {[%emt 0:00:17]} Rxc4 {[%emt 0:12:40]} 21. Qxc4 {
[%emt 0:00:34]} exd5 {[%emt 0:00:26]} 22. Qf4 {[%emt 0:00:26]} Be6 {[%emt 0:00:
00]} 23. Nd4 {[%emt 0:00:36]} Rf8 {[%emt 0:06:19]} 24. Qc7 {[%emt 0:10:56]}
Qxd4 {[%emt 0:02:26]} 25. Qxe7 {[%emt 0:00:14]} Qb2 {[%emt 0:00:36]} 26. Rc7 {
[%emt 0:01:41]} Qf6 {[%emt 0:06:21]} 27. Qxf6 {[%emt 0:01:45]} gxf6 {[%emt 0:
00:00]} 28. Rxb7 {[%emt 0:00:09]} Ra8 {[%emt 0:00:26]} 29. Rc1 {[%emt 0:00:17]}
a6 {[%emt 0:01:06]} 30. Rcc7 {[%emt 0:00:42]} d4 {[%emt 0:00:36]} 31. Kf1 {
[%emt 0:01:03]} d3 {[%emt 0:00:22]} 32. Ke1 {[%emt 0:00:06]} Rd8 {[%emt 0:00:
00]} 33. Kd2 {[%emt 0:00:15]} Bd5 {[%emt 0:01:07]} 34. Ra7 {[%emt 0:00:17]}
Bxg2 {[%emt 0:00:49]} 35. Rxf7 {[%emt 0:00:12]} Be4 {[%emt 0:01:28]} 36. Rxf6 {
[%emt 0:01:55]} Rc8 {[%emt 0:00:30]} 37. Rd6 {[%emt 0:00:17]} Rc2+ {[%emt 0:00:
00]} 38. Ke3 {[%emt 0:01:12]} Re2+ {[%emt 0:00:21]} 39. Kf4 {[%emt 0:00:29]}
Bg6 {[%emt 0:01:41]} 40. Rd8+ {[%emt 0:01:04]} Re8 {[%emt 0:00:38]} 41. Rxe8+ {
[%emt 0:30:13]} Bxe8 {[%emt 0:30:07]} 42. Rxa6 {[%emt 0:01:04]} Kf7 {[%emt 0:
00:00]} 43. Rd6 {[%emt 0:00:08]} Bb5 {[%emt 0:00:20]} 44. Ke3 {[%emt 0:00:12]}
Kg7 {[%emt 0:00:51]} 45. Rxd3 {[%emt 0:00:09]} Bxd3 {[%emt 0:00:09]} 46. Kxd3 {
[%emt 0:00:05]} 1-0

[Event "44th Chess Olympiad Women 2022"]
[Site "Chennai"]
[Date "2022.08.06"]
[Round "8.65"]
[White "Saraci, Rinesa"]
[Black "Nuha, Rilwan"]
[Result "1-0"]
[WhiteElo "1494"]
[BlackElo "1068"]
[Annotator "NA RC"]
[PlyCount "107"]
[EventDate "2022.??.??"]
[TimeControl "60"]

1. e4 {[%emt 0:00:03]} c5 {[%emt 0:00:06]} 2. Nf3 {[%emt 0:00:14]} Nc6 {
[%emt 0:00:06]} 3. d4 {[%emt 0:00:31]} cxd4 {[%emt 0:00:08]} 4. Nxd4 {[%emt 0:
00:00]} g6 {[%emt 0:00:19]} 5. Nc3 {[%emt 0:06:02]} Bg7 {[%emt 0:00:52]} 6. Be3
{[%emt 0:01:25]} Nf6 {[%emt 0:03:15]} 7. Be2 {[%emt 0:06:19]} O-O {[%emt 0:00:
00]} 8. O-O {[%emt 0:00:47]} d6 {[%emt 0:04:50]} 9. h3 {[%emt 0:02:11]} a6 {
[%emt 0:02:58]} 10. a3 {[%emt 0:06:45]} Bd7 {[%emt 0:03:02]} 11. Nf3 {[%emt 0:
00:00]} Rc8 {[%emt 0:02:19]} 12. Qd2 {[%emt 0:04:41]} Qc7 {[%emt 0:07:16]} 13.
Bh6 {[%emt 0:04:33]} Rfd8 {[%emt 0:04:41]} 14. Bxg7 {[%emt 0:05:18]} Kxg7 {
[%emt 0:00:03]} 15. Rac1 {[%emt 0:03:36]} b5 {[%emt 0:10:16]} 16. Bd3 {[%emt 0:
00:00]} Na5 {[%emt 0:02:54]} 17. Rfe1 {[%emt 0:07:04]} Nc4 {[%emt 0:01:17]} 18.
Bxc4 {[%emt 0:00:49]} Qxc4 {[%emt 0:00:46]} 19. Qd3 {[%emt 0:09:14]} Qxd3 {
[%emt 0:10:29]} 20. cxd3 {[%emt 0:00:11]} Bc6 {[%emt 0:03:00]} 21. Nd4 {
[%emt 0:12:19]} Bb7 {[%emt 0:05:08]} 22. Nce2 {[%emt 0:02:30]} d5 {[%emt 0:00:
00]} 23. f3 {[%emt 0:02:57]} dxe4 {[%emt 0:02:17]} 24. dxe4 {[%emt 0:00:25]} e5
{[%emt 0:01:37]} 25. Nb3 {[%emt 0:00:54]} Nd7 {[%emt 0:00:47]} 26. Red1 {
[%emt 0:03:06]} Nb6 {[%emt 0:03:59]} 27. Rxd8 {[%emt 0:01:53]} Rxd8 {[%emt 0:
00:00]} 28. Na5 {[%emt 0:03:20]} Rd7 {[%emt 0:01:49]} 29. Rc2 {[%emt 0:03:04]}
Ba8 {[%emt 0:03:29]} 30. Kf2 {[%emt 0:00:54]} h5 {[%emt 0:03:08]} 31. g4 {
[%emt 0:03:13]} hxg4 {[%emt 0:02:01]} 32. hxg4 {[%emt 0:00:06]} Kh6 {[%emt 0:
00:00]} 33. Nc1 {[%emt 0:02:14]} Nc4 {[%emt 0:07:16]} 34. Nxc4 {[%emt 0:02:05]}
bxc4 {[%emt 0:00:02]} 35. Ke2 {[%emt 0:00:54]} Rb7 {[%emt 0:03:10]} 36. Na2 {
[%emt 0:00:33]} Rb3 {[%emt 0:02:32]} 37. Nc1 {[%emt 0:00:57]} Kg5 {[%emt 0:00:
00]} 38. Nxb3 {[%emt 0:00:24]} cxb3 {[%emt 0:00:02]} 39. Rc3 {[%emt 0:00:16]}
f5 {[%emt 0:00:55]} 40. gxf5 {[%emt 0:01:06]} gxf5 {[%emt 0:00:03]} 41. exf5 {
[%emt 0:30:28]} Kxf5 {[%emt 0:30:48]} 42. Rxb3 {[%emt 0:00:00]} Kf4 {[%emt 0:
00:00]} 43. Rb4+ {[%emt 0:00:00]} Kf5 {[%emt 0:00:00]} 44. Ke3 {[%emt 0:00:00]}
Bc6 {[%emt 0:00:00]} 45. Rb6 {[%emt 0:00:00]} Bb5 {[%emt 0:00:00]} 46. Rxb5 {
[%emt 0:00:00]} axb5 {[%emt 0:00:00]} 47. b3 {[%emt 0:00:00]} Ke6 {[%emt 0:00:
00]} 48. Ke4 {[%emt 0:00:00]} Kd6 {[%emt 0:00:00]} 49. a4 {[%emt 0:00:00]} bxa4
{[%emt 0:00:00]} 50. bxa4 {[%emt 0:00:00]} Kc5 {[%emt 0:00:00]} 51. Kxe5 {
[%emt 0:00:00]} Kb4 {[%emt 0:00:00]} 52. f4 {[%emt 0:00:00]} Kxa4 {[%emt 0:00:
00]} 53. f5 {[%emt 0:00:00]} Kb3 {[%emt 0:00:00]} 54. f6 {[%emt 0:00:00]} 1-0